bitfinex/quotes_SOLUSD_20241013
["timestamp","ask_amount","ask_price","bid_price","bid_amount"]
[1728820633949,22.1345,146.94,146.84,20.0]
[1728820634166,22.1345,146.94,146.83,6.83176447]
[1728820634447,23.776884,146.93,146.83,6.83176447]
[1728820635463,23.776884,146.91,146.83,6.83176447]
[1728820635782,23.776884,146.91,146.82,5.77850995]
[1728820635960,30.583884,146.91,146.82,5.77850995]
[1728820636168,23.776884,146.91,146.82,5.77850995]
[1728820636670,23.776884,146.89,146.82,5.77850995]
[1728820638075,23.776884,146.89,146.82,0.92359735]
[1728820639958,30.584784,146.89,146.82,0.92359735]
[1728820641359,22.1345,146.88,146.82,0.92359735]
[1728820644559,23.776884,146.87,146.82,0.92359735]
[1728820645664,30.585584,146.87,146.82,0.92359735]
[1728820646068,23.776884,146.85,146.82,0.92359735]
[1728820646584,6.064,146.83,146.82,0.92359735]
[1728820651154,16.0705,146.84,146.82,0.92359735]
[1728820651697,22.8807,146.84,146.82,0.92359735]
[1728820651863,13.2531,146.83,146.82,0.92359735]
[1728820652368,8.94654372,146.88,146.71,0.1]
[1728820652369,6.812,146.8,146.71,0.1]
[1728820652565,59.664684,146.79,146.71,0.1]
[1728820652766,66.477184,146.79,146.71,0.1]
[1728820653173,59.664684,146.79,146.71,0.1]
[1728820653387,6.4426,146.76,146.71,0.1]
[1728820653566,6.4426,146.76,146.68,0.3327729]
[1728820653771,23.776884,146.75,146.68,0.3327729]
[1728820654168,6.4426,146.76,146.68,0.3327729]
[1728820654561,15.257,146.74,146.68,0.3327729]
[1728820656683,23.776884,146.75,146.68,0.3327729]
[1728820656863,20.0,146.79,146.69,23.776884]
[1728820657061,21.2864,146.8,146.7,1.36309574]
[1728820657586,21.2864,146.8,146.7,1.36309561]
[1728820657791,21.2864,146.8,146.7,20.0]
[1728820658165,23.776884,146.79,146.7,20.0]
[1728820659784,21.2864,146.8,146.7,20.0]
[1728820661080,23.776884,146.79,146.7,20.0]
[1728820662583,23.776884,146.79,146.7,21.36302255]
[1728820664098,21.2864,146.8,146.72,20.0]
[1728820665684,21.2864,146.8,146.73,1.36281937]
[1728820665888,21.2864,146.8,146.72,20.0]
[1728820666997,21.2864,146.8,146.73,1.36282399]
[1728820670882,21.2864,146.8,146.72,20.0]
[1728820671096,21.2864,146.8,146.74,20.0]
[1728820671601,21.2864,146.8,146.75,1.36272185]
[1728820671902,21.2864,146.8,146.73,1.36270483]
[1728820672611,21.2864,146.8,146.75,20.0]
[1728820674682,21.2864,146.8,146.72,4.79110418]
[1728820674683,21.2864,146.8,146.72,24.79110418]
[1728820675184,30.589584,146.79,146.71,6.45216644]
[1728820675504,6.8129,146.78,146.67,6.45216644]
[1728820676304,21.8921,146.76,146.67,6.45216644]
[1728820676506,21.8921,146.76,146.65,10.9616]
[1728820676891,28.7059,146.76,146.65,10.9616]
[1728820677211,28.7059,146.76,146.63,17.79850171]
[1728820677212,43.776884,146.75,146.63,6.63730171]
[1728820677388,23.776884,146.73,146.63,0.18513527]
[1728820678901,23.776884,146.74,146.63,0.18513527]
[1728820679098,23.776884,146.72,146.63,20.18513527]
[1728820679582,22.9479,146.71,146.63,0.18513527]
[1728820679783,29.7641,146.71,146.63,0.18513527]
[1728820680212,22.9479,146.71,146.63,0.18513527]
[1728820686509,22.9479,146.71,146.63,1.54891254]
[1728820686714,22.9479,146.71,146.63,0.18513527]
[1728820687906,16.3721,146.71,146.63,0.18513527]
[1728820692631,6.5758,146.74,146.64,1.36354173]
[1728820692997,6.5758,146.74,146.64,21.36354173]
[1728820693323,6.5758,146.74,146.64,20.0]
[1728820693895,6.5758,146.74,146.63,24.52533527]
[1728820694317,6.5758,146.74,146.67,20.0]
[1728820694903,6.5758,146.74,146.68,1.69607114]
[1728820695304,15.7363,146.75,146.68,1.69607114]
[1728820695512,15.7363,146.75,146.68,24.1096569]
[1728820695707,15.7363,146.75,146.69,21.36318195]
[1728820695907,15.7363,146.75,146.69,20.0]
[1728820696234,6.4886,146.78,146.69,21.36318195]
[1728820697427,6.4886,146.78,146.69,20.0]
[1728820702207,13.3016,146.78,146.69,20.0]
[1728820704320,6.4886,146.78,146.69,20.0]
[1728820708105,6.4886,146.78,146.71,20.0]
[1728820708304,15.7363,146.79,146.73,20.0]
[1728820708536,6.4886,146.82,146.73,20.0]
[1728820709923,6.4886,146.82,146.74,1.36266807]
[1728820712013,6.4886,146.82,146.74,23.776884]
[1728820712217,6.4886,146.82,146.75,20.0]
[1728820712422,6.4886,146.82,146.73,20.0]
[1728820712717,6.4886,146.82,146.75,20.0]
[1728820713038,6.4886,146.82,146.72,23.776884]
[1728820713330,13.3,146.82,146.73,20.0]
[1728820713533,13.3,146.82,146.69,4.3402]
[1728820714831,13.3,146.82,146.7,23.776884]
[1728820715226,13.3,146.82,146.71,20.0]
[1728820715409,13.3,146.82,146.72,23.776884]
[1728820715610,13.3,146.82,146.73,20.0]
[1728820717338,6.8123,146.8,146.73,20.0]
[1728820717632,6.8123,146.8,146.7,23.776884]
[1728820718019,6.8123,146.8,146.69,4.3402]
[1728820718020,23.776884,146.79,146.69,4.3402]
[1728820718521,15.4665,146.8,146.68,0.3327729]
[1728820718711,15.4665,146.8,146.68,20.3327729]
[1728820719536,23.776884,146.79,146.7,20.0]
[1728820720633,22.2787,146.8,146.7,20.0]
[1728820723536,23.776884,146.79,146.7,20.0]
[1728820723836,6.613,146.78,146.68,0.3327729]
[1728820725139,6.613,146.78,146.69,20.0]
[1728820725549,13.4263,146.78,146.68,0.3327729]
[1728820725841,6.613,146.78,146.68,0.3327729]
[1728820726042,30.590384,146.77,146.68,0.3327729]
[1728820726923,22.2806,146.76,146.68,0.3327729]
[1728820728532,15.4665,146.76,146.68,0.3327729]
[1728820732733,22.2805,146.76,146.68,0.3327729]
[1728820733962,23.776884,146.75,146.68,0.3327729]
[1728820734446,30.591584,146.75,146.68,0.3327729]
[1728820734639,6.8149,146.74,146.68,0.3327729]
[1728820735137,6.5122,146.73,146.68,0.3327729]
[1728820735529,6.8157,146.72,146.68,0.3327729]
[1728820735734,13.3275,146.73,146.68,0.3327729]
[1728820738236,6.8157,146.72,146.68,0.3327729]
[1728820741029,15.1706,146.71,146.68,0.3327729]
[1728820741421,21.9868,146.71,146.68,0.3327729]
[1728820741641,15.1706,146.71,146.68,0.3327729]
[1728820751856,6.5122,146.73,146.68,0.3327729]
[1728820753456,13.3274,146.73,146.68,0.3327729]
[1728820754245,16.0516,146.75,146.68,0.3327729]
[1728820756540,22.8659,146.75,146.68,0.3327729]
[1728820756849,6.8156,146.73,146.68,0.3327729]
[1728820757164,6.8162,146.71,146.68,0.3327729]
[1728820757340,6.8158,146.72,146.68,0.3327729]
[1728820759534,6.6583,146.73,146.68,0.3327729]
[1728820761469,16.0516,146.75,146.68,0.3327729]
[1728820766645,16.0516,146.75,146.68,20.3327729]
[1728820772864,6.402,146.77,146.68,20.3327729]
[1728820773063,6.402,146.77,146.69,1.36327942]
[1728820773364,6.402,146.77,146.7,21.36312089]
[1728820774672,6.402,146.77,146.7,20.0]
[1728820775460,6.402,146.77,146.7,21.36307129]
[1728820775661,15.2619,146.79,146.72,20.0]
[1728820778759,15.2619,146.79,146.73,23.776884]
[1728820779080,6.5877,146.81,146.74,20.0]
[1728820780983,6.5877,146.81,146.73,20.0]
[1728820781155,6.5877,146.81,146.74,23.776884]
[1728820781360,6.5877,146.81,146.75,20.0]
[1728820784066,6.8111,146.82,146.75,20.0]
[1728820784686,6.8115,146.81,146.73,24.73610624]
[1728820784985,6.8115,146.81,146.73,20.0]
[1728820786581,6.8111,146.82,146.73,20.0]
[1728820789996,6.8118,146.81,146.73,20.0]
[1728820791206,23.776884,146.82,146.73,20.0]
[1728820791408,30.588084,146.82,146.73,20.0]
[1728820796081,6.8117,146.81,146.73,20.0]
[1728820796395,6.5259,146.81,146.71,24.92926574]
[1728820796597,23.776884,146.79,146.71,24.92926574]
[1728820797273,16.1565,146.78,146.71,24.92926574]
[1728820797601,6.5259,146.76,146.68,0.3327729]
[1728820798890,6.5259,146.76,146.68,20.3327729]
[1728820802013,22.9718,146.73,146.68,0.3327729]
[1728820802178,16.1565,146.73,146.68,0.3327729]
[1728820802372,22.9717,146.73,146.68,0.3327729]
[1728820803394,23.776884,146.72,146.68,0.3327729]
[1728820804796,16.1565,146.73,146.68,0.3327729]
[1728820805682,122.1565,146.73,146.68,0.3327729]
[1728820807803,106.0,146.73,146.68,0.3327729]
[1728820809097,106.0,146.73,146.68,20.3327729]
[1728820809309,106.0,146.73,146.69,1.36319248]
[1728820810281,106.0,146.73,146.71,20.0]
[1728820810495,106.0,146.73,146.71,21.36297837]
[1728820810893,106.0,146.73,146.71,20.0]
[1728820811082,106.0,146.73,146.71,26.0970722]
[1728820811790,106.0,146.73,146.71,27.46001386]
[1728820812197,106.0,146.73,146.72,43.776884]
[1728820812393,106.0,146.73,146.72,60.8355562]
[1728820812707,100.93390175,146.73,146.72,60.8355562]
[1728820813711,63.71047123,146.73,146.72,60.8355562]
[1728820814201,61.35661328,146.73,146.72,62.19838268]
[1728820814510,47.84661328,146.73,146.72,62.19838268]
[1728820815013,2.64961329,146.73,146.72,62.19838268]
[1728820815382,6.0581,146.84,146.73,20.0]
[1728820815589,6.0581,146.84,146.76,20.0]
[1728820815884,6.0581,146.84,146.77,1.36247609]
[1728820816105,6.0581,146.84,146.79,20.0]
[1728820816405,6.0581,146.84,146.8,1.36223922]
[1728820816612,21.8908,146.89,146.81,1.36210321]
[1728820816790,21.8908,146.89,146.79,26.0970722]
[1728820816991,21.8908,146.89,146.8,1.36208824]
[1728820817205,21.8908,146.89,146.82,23.776884]
[1728820817410,21.8908,146.89,146.83,20.0]
[1728820818105,28.6987,146.89,146.81,20.0]
[1728820818493,21.8908,146.89,146.81,20.0]
[1728820819108,21.8908,146.89,146.83,20.0]
[1728820819407,21.8908,146.89,146.84,1.36181574]
[1728820820115,21.8908,146.89,146.84,23.776884]
[1728820820311,15.8327,146.92,146.85,20.0]
[1728820820811,15.8327,146.92,146.84,23.776884]
[1728820820999,15.8327,146.92,146.85,20.0]
[1728820823109,15.8327,146.92,146.82,20.0]
[1728820823491,22.6391,146.92,146.83,23.776884]
[1728820823817,22.6391,146.92,146.84,20.0]
[1728820823818,15.8327,146.92,146.84,20.0]
[1728820824038,6.8072,146.91,146.84,20.0]
[1728820824589,6.8072,146.91,146.78,24.74919396]
[1728820824790,6.8072,146.91,146.78,20.0]
[1728820825712,6.8072,146.91,146.8,20.0]
[1728820825910,6.8072,146.91,146.81,23.776884]
[1728820826213,15.8327,146.92,146.82,20.0]
[1728820826689,22.6392,146.92,146.82,20.0]
[1728820827503,15.8327,146.92,146.82,20.0]
[1728820827891,15.8327,146.92,146.83,1.36181548]
[1728820828795,15.8327,146.92,146.85,20.0]
[1728820829100,15.8327,146.92,146.86,1.36166874]
[1728820829299,15.8327,146.92,146.82,20.0]
[1728820829300,15.8327,146.92,146.85,20.0]
[1728820830091,15.8327,146.92,146.82,20.0]
[1728820830311,15.8327,146.92,146.83,23.776884]
[1728820830692,15.8327,146.92,146.84,20.0]
[1728820831917,22.6393,146.92,146.82,23.776884]
[1728820832414,22.6393,146.92,146.83,20.0]
[1728820833610,15.8327,146.92,146.83,20.0]
[1728820833909,22.6393,146.92,146.83,20.0]
[1728820834115,23.776884,146.91,146.8,20.0]
[1728820834314,23.776884,146.91,146.81,23.776884]
[1728820834516,30.583884,146.91,146.82,20.0]
[1728820834814,30.583884,146.91,146.83,1.36192826]
[1728820834815,23.776884,146.91,146.83,1.36192826]
[1728820835016,23.776884,146.91,146.82,20.0]
[1728820836096,22.6392,146.92,146.82,20.0]
[1728820841321,15.8327,146.92,146.82,20.0]
[1728820841500,22.6395,146.92,146.82,20.0]
[1728820841814,6.807,146.91,146.82,20.0]
[1728820843131,6.807,146.91,146.82,21.36196143]
[1728820843334,6.807,146.91,146.82,20.0]
[1728820843528,22.6392,146.92,146.82,20.0]
[1728820844508,22.6392,146.92,146.83,23.776884]
[1728820844726,15.8327,146.92,146.84,20.0]
[1728820844933,22.6392,146.92,146.84,20.0]
[1728820845437,22.6392,146.92,146.82,23.776884]
[1728820845620,22.6392,146.92,146.83,20.0]
[1728820846633,15.8327,146.92,146.83,20.0]
[1728820846825,6.8072,146.91,146.83,20.0]
[1728820848517,6.8072,146.91,146.79,23.776884]
[1728820848712,6.8072,146.91,146.8,20.0]
[1728820848922,6.8072,146.91,146.81,23.776884]
[1728820849133,6.8072,146.91,146.82,20.0]
[1728820849631,15.8327,146.92,146.83,1.36192017]
[1728820850020,22.6391,146.92,146.82,20.0]
[1728820851723,15.8327,146.92,146.83,1.36186168]
[1728820851916,15.8327,146.92,146.85,20.0]
[1728820852608,15.8327,146.92,146.86,1.36165941]
[1728820854020,15.8327,146.92,146.85,20.0]
[1728820855120,15.8327,146.92,146.86,1.36166123]
[1728820855320,15.8327,146.92,146.85,20.0]
[1728820855820,15.8327,146.92,146.86,1.36165859]
[1728820857920,15.8327,146.92,146.85,20.0]
[1728820858533,6.0581,146.93,146.86,1.36153539]
[1728820858839,6.0581,146.93,146.87,20.0]
[1728820859832,21.627,146.95,146.86,23.776884]
[1728820860041,21.627,146.95,146.87,21.36140386]
[1728820860617,21.627,146.95,146.87,20.0]
[1728820860832,28.4324,146.95,146.87,20.0]
[1728820861843,21.627,146.95,146.88,1.36150727]
[1728820862235,21.627,146.95,146.87,20.0]
[1728820862416,21.627,146.95,146.88,23.776884]
[1728820862617,21.627,146.95,146.89,20.0]
[1728820863240,21.627,146.95,146.88,20.0]
[1728820864119,21.627,146.95,146.89,1.36135967]
[1728820864725,21.627,146.95,146.88,20.0]
[1728820865539,21.627,146.95,146.89,1.36126429]
[1728820866543,23.039,146.99,146.91,20.0]
[1728820867524,23.039,146.99,146.91,50.0]
[1728820869921,23.039,146.99,146.93,20.0]
[1728820870121,23.039,146.99,146.94,1.36088294]
[1728820870339,23.039,146.99,146.93,20.0]
[1728820872340,23.039,146.99,146.94,1.36085659]
[1728820872645,23.039,146.99,146.93,20.0]
[1728820876056,23.039,146.99,146.93,24.96291087]
[1728820876435,16.4329,146.99,146.94,25.13771015]
[1728820876661,22.4768,147.03,146.95,20.0]
[1728820876841,22.4768,147.03,146.96,1.36067909]
[1728820877656,22.4768,147.03,146.95,20.0]
[1728820882367,22.4768,147.03,146.96,1.36066888]
[1728820882568,22.4768,147.03,146.95,20.0]
[1728820882733,22.4768,147.03,146.97,20.0]
[1728820882934,0.5,147.05,146.98,1.36044161]
[1728820885359,0.5,147.05,147.0,20.0]
[1728820885566,0.5,147.05,146.99,20.0]
[1728820886070,0.5,147.05,147.0,23.776884]
[1728820886283,0.5,147.05,146.99,20.0]
[1728820886644,0.5,147.05,147.01,20.0]
[1728820887146,0.5,147.05,146.99,20.0]
[1728820889957,0.5,147.05,146.94,30.0]
[1728820889958,0.5,147.05,146.95,20.0]
[1728820890269,0.5,147.05,146.97,20.0]
[1728820891473,0.5,147.05,146.95,20.0]
[1728820891780,0.5,147.05,146.96,1.36053431]
[1728820892468,0.5,147.05,146.98,20.0]
[1728820893357,6.8016,147.03,146.96,20.0]
[1728820893562,28.3274,147.04,146.96,20.0]
[1728820893764,28.3274,147.04,146.91,21.36069108]
[1728820893968,28.3274,147.04,146.93,20.0]
[1728820894165,21.5265,147.04,146.94,1.36061604]
[1728820894854,21.5265,147.04,146.95,23.776884]
[1728820895062,21.5265,147.04,146.96,21.36060497]
[1728820896052,21.5265,147.04,146.96,20.0]
[1728820896563,21.5265,147.04,146.98,20.0]
[1728820900269,21.5265,147.04,146.99,1.3603621]
[1728820901283,21.5265,147.04,146.98,20.0]
[1728820902278,21.5265,147.04,146.99,1.36043417]
[1728820903065,21.5265,147.04,146.98,20.0]
[1728820912269,0.5,147.05,147.0,20.0]
[1728820912473,0.5,147.05,146.99,23.776884]
[1728820912779,0.5,147.05,147.0,20.0]
[1728820913085,0.5,147.05,147.01,1.36013736]
[1728820913286,0.5,147.05,147.0,20.0]
[1728820913883,0.5,147.05,147.01,1.36016573]
[1728820914182,0.5,147.05,147.0,20.0]
[1728820914780,0.5,147.05,147.01,1.3601579]
[1728820914983,0.5,147.05,147.0,23.776884]
[1728820915165,0.5,147.05,147.01,21.36010949]
[1728820915773,0.5,147.05,147.03,20.0]
[1728820915984,0.5,147.05,147.04,1.35995958]
[1728820916384,0.5,147.05,147.03,20.0]
[1728820917561,0.5,147.05,147.0,20.0]
[1728820917785,0.5,147.05,147.02,20.0]
[1728820918393,0.5,147.05,147.0,20.0]
[1728820918581,0.5,147.05,147.02,20.0]
[1728820919089,0.5,147.05,146.99,20.0]
[1728820919383,0.5,147.05,147.02,20.0]
[1728820919587,0.5,147.05,147.03,1.36006389]
[1728820919889,0.5,147.05,147.02,20.0]
[1728820920276,0.5,147.05,147.0,23.776884]
[1728820920593,0.5,147.05,147.01,21.36006836]
[1728820920784,0.5,147.05,147.01,20.0]
[1728820921093,0.5,147.05,147.02,23.776884]
[1728820921274,0.5,147.05,147.03,20.0]
[1728820921478,0.5,147.05,147.01,20.0]
[1728820921796,0.5,147.05,147.02,1.36006558]
[1728820922672,0.5,147.05,147.04,20.0]
[1728820922873,0.5,147.05,147.04,21.35983608]
[1728820923385,0.5,147.05,147.04,43.776884]
[1728820928189,0.5,147.05,147.04,48.73947874]
[1728820928393,0.5,147.05,147.02,6.72538571]
[1728820928593,0.5,147.05,146.98,6.72538571]
[1728820928804,0.5,147.05,146.98,36.72538571]
[1728820929269,0.5,147.05,146.98,6.72538571]
[1728820929870,0.5,147.05,146.99,20.0]
[1728820930296,0.5,147.05,147.0,1.36005855]
[1728820930502,0.5,147.05,146.99,20.0]
[1728820930802,0.5,147.05,147.03,20.0]
[1728820931778,0.5,147.05,146.99,43.776884]
[1728820932597,0.5,147.05,146.97,4.94273854]
[1728820932896,0.5,147.05,146.93,10.9616]
[1728820932897,0.5,147.05,146.94,24.7627261]
[1728820933097,0.5,147.05,146.95,30.0408441]
[1728820933697,0.5,147.05,146.95,0.0408441]
[1728820934203,0.5,147.05,146.95,23.8177281]
[1728820934920,0.5,147.05,146.97,23.776884]
[1728820935078,0.5,147.05,146.98,20.0]
[1728820935280,0.5,147.05,146.99,23.776884]
[1728820935582,0.5,147.05,147.0,20.0]
[1728820937176,0.5,147.05,146.94,18.48048558]
[1728820937177,0.5,147.05,146.95,20.0]
[1728820937376,7.3007,147.05,146.95,20.0408441]
[1728820938599,7.3007,147.05,146.97,20.0]
[1728820938903,0.5,147.05,146.99,20.0]
[1728820946806,0.5,147.05,147.0,1.36035148]
[1728820947595,0.5,147.05,146.99,20.0]
[1728820948610,0.5,147.05,147.0,1.36033269]
[1728820948906,0.5,147.05,146.99,20.0]
[1728820949512,0.5,147.05,147.0,1.36032077]
[1728820952598,0.5,147.05,147.02,20.0]
[1728820953311,0.5,147.05,146.99,20.0]
[1728820953716,0.5,147.05,147.01,20.0]
[1728820954289,0.5,147.05,146.99,20.0]
[1728820954490,0.5,147.05,147.0,23.776884]
[1728820954716,0.5,147.05,147.01,20.0]
[1728820955091,0.5,147.05,147.02,1.36004312]
[1728820957213,0.5,147.05,147.03,23.776884]
[1728820957413,0.5,147.05,147.04,20.0]
[1728820958021,0.5,147.05,147.02,23.776884]
[1728820958190,0.5,147.05,147.03,20.0]
[1728820958803,0.5,147.05,147.01,20.0]
[1728820959205,0.5,147.05,147.03,20.0]
[1728820959893,0.5,147.05,147.0,20.0]
[1728820960218,0.5,147.05,147.02,20.0]
[1728820960605,0.5,147.05,147.04,20.0]
[1728820961417,16.992,147.13,147.03,23.776884]
[1728820961418,21.9217,147.13,147.03,23.776884]
[1728820961624,21.9217,147.13,147.06,20.0]
[1728820961995,28.7187,147.13,147.06,20.0]
[1728820962321,28.7187,147.13,147.04,20.0]
[1728820962498,6.7972,147.12,147.04,20.0]
[1728820963519,6.2137,147.08,147.01,20.0]
[1728820964128,6.2137,147.08,147.02,1.36012488]
[1728820964707,6.2137,147.08,147.01,20.0]
[1728820965396,6.2137,147.08,146.95,6.72538571]
[1728820965625,15.708,147.04,146.96,0.0408441]
[1728820965819,6.8016,147.03,146.96,0.0408441]
[1728820966020,6.8019,147.02,146.96,0.0408441]
[1728820966200,6.8019,147.02,146.93,4.77323448]
[1728820966394,6.8019,147.02,146.9,10.9616]
[1728820967097,6.8019,147.02,146.91,20.0]
[1728820967318,6.8024,147.01,146.9,10.9616]
[1728820967522,15.708,147.0,146.9,4.88180342]
[1728820967709,15.708,147.0,146.86,22.1348]
[1728820967710,13.0169,146.99,146.86,22.1348]
[1728820967896,13.0169,146.99,146.88,30.0]
[1728820968518,6.2137,146.99,146.88,30.0]
[1728820969224,6.2137,146.99,146.87,26.833]
[1728820969535,6.2137,146.99,146.87,26.99972444]
[1728820969706,6.2137,146.99,146.88,0.16671309]
[1728820969906,6.2137,146.99,146.89,20.0]
[1728820970424,6.2137,146.99,146.91,23.776884]
[1728820970634,6.2137,146.99,146.94,20.0]
[1728820971407,6.2137,146.99,146.92,20.0]
[1728820971617,6.2137,146.99,146.94,20.0]
[1728820972328,6.2137,146.99,146.93,20.0]
[1728820975113,6.2137,146.99,146.94,1.36080131]
[1728820975515,6.2137,146.99,146.93,20.0]
[1728820977438,6.2137,146.99,146.92,4.96020593]
[1728820977731,6.2137,146.99,146.88,20.0]
[1728820977934,6.2137,146.99,146.88,26.72538571]
[1728820978132,6.2137,146.99,146.89,1.36095296]
[1728820978913,6.2137,146.99,146.88,26.72538571]
[1728820979308,6.2137,146.99,146.89,1.36080175]
[1728820979627,6.2137,146.99,146.9,23.776884]
[1728820979826,6.2137,146.99,146.93,20.0]
[1728820981148,6.2137,146.99,146.94,1.36080328]
[1728820981707,6.2137,146.99,146.95,20.0]
[1728820982123,6.2137,146.99,146.89,8.07496209]
[1728820982124,6.2137,146.99,146.88,6.72538571]
[1728820982330,6.2137,146.99,146.9,20.0]
[1728820982638,6.2137,146.99,146.89,20.0]
[1728820982833,6.2137,146.99,146.9,1.36087588]
[1728820983935,6.2137,146.99,146.93,20.0]
[1728820986840,6.2137,146.99,146.94,1.36093065]
[1728820987546,6.2137,146.99,146.93,20.0]
[1728820987738,13.0169,146.99,146.89,20.0]
[1728820987938,6.2137,146.99,146.89,20.0]
[1728820988134,6.8042,146.97,146.87,6.833]
[1728820988328,15.7963,146.96,146.86,10.9616]
[1728820988527,15.7963,146.96,146.87,0.16672303]
[1728820988728,15.7963,146.96,146.87,0.16671168]
[1728820989251,15.7963,146.96,146.87,1.52799237]
[1728820989439,15.7963,146.96,146.87,9.60295446]
[1728820989853,15.7963,146.96,146.88,20.0]
[1728820990049,15.7963,146.96,146.91,20.0]
[1728820990352,6.2137,146.99,146.92,1.36102975]
[1728820992143,6.2137,146.99,146.94,20.0]
[1728820992351,6.2137,146.99,146.95,1.36082493]
[1728820992543,6.2137,146.99,146.94,20.0]
[1728820992745,6.2137,146.99,146.95,1.36071447]
[1728820993135,6.2137,146.99,146.93,23.776884]
[1728820993344,6.2137,146.99,146.91,20.0]
[1728820993545,6.2137,146.99,146.93,20.0]
[1728820993745,6.2137,146.99,146.94,1.36069102]
[1728820993975,15.0097,147.0,146.94,1.36069102]
[1728820994265,15.0097,147.0,146.96,20.0]
[1728820994557,15.0097,147.0,146.97,1.36061361]
[1728820994738,15.0097,147.0,146.93,20.0]
[1728820995242,15.0097,147.0,146.95,20.0]
[1728820995446,15.0097,147.0,146.96,1.36055915]
[1728820996240,15.0097,147.0,146.95,20.0]
[1728820996441,15.0097,147.0,146.97,20.0]
[1728820996761,6.0959,147.02,146.98,1.36051398]
[1728820997261,15.0097,147.04,146.98,1.36051398]
[1728820997457,15.0097,147.04,146.97,20.0]
[1728820997661,15.0097,147.04,146.98,1.360357]
[1728820998364,15.0097,147.04,146.97,20.0]
[1728821005258,15.0097,147.04,146.98,1.36041937]
[1728821006641,15.0097,147.04,146.97,20.0]
[1728821008950,15.0097,147.04,146.98,1.36031107]
[1728821009155,15.0097,147.04,146.99,20.0]
[1728821009673,15.0097,147.04,147.0,1.36018134]
[1728821009868,6.0959,147.06,147.0,1.36018134]
[1728821010176,6.0959,147.06,146.97,20.0]
[1728821010368,6.0959,147.06,146.99,20.0]
[1728821012168,6.0959,147.06,146.97,20.0]
[1728821012356,6.0959,147.06,146.98,23.776884]
[1728821012555,6.0959,147.06,146.99,20.0]
[1728821013056,6.0959,147.06,147.0,1.36013751]
[1728821014281,6.0959,147.06,146.99,20.0]
[1728821020177,6.0959,147.06,147.0,1.36022014]
[1728821020749,15.0097,147.08,147.0,1.36022014]
[1728821021161,15.0097,147.08,147.01,20.0]
[1728821022471,15.0097,147.08,147.02,1.35999127]
[1728821023463,15.0097,147.08,147.01,20.0]
[1728821024471,15.0097,147.08,147.02,1.35988797]
[1728821025583,15.0097,147.08,147.01,20.0]
[1728821025889,15.0097,147.08,147.02,1.35988889]
[1728821028781,15.0097,147.08,147.03,20.0]
[1728821028955,6.5873,147.09,147.03,20.0]
[1728821029380,6.5873,147.09,147.04,1.35970032]
[1728821029687,6.5873,147.09,147.03,23.776884]
[1728821029883,6.5873,147.09,147.04,20.0]
[1728821030460,6.5873,147.09,147.05,1.35969337]
[1728821031295,15.1573,147.11,147.05,1.35969337]
[1728821031594,21.3026,147.13,147.05,1.35969337]
[1728821031885,21.3026,147.13,147.06,21.35953697]
[1728821032282,21.3026,147.13,147.03,60.50226971]
[1728821032283,21.3026,147.13,147.04,20.0]
[1728821032466,21.3026,147.13,147.06,20.0]
[1728821032672,28.0996,147.13,147.04,20.0]